bitfinex/quotes_ETHUSD_20240820
["timestamp","ask_amount","ask_price","bid_price","bid_amount"]
[1724155999092,3.76272,2657.7,2657.1,3.7634]
[1724156000673,3.76272,2657.7,2657.1,7.52682]
[1724156000787,3.76272,2657.7,2657.1,3.7634]
[1724156000989,3.76281,2657.6,2657.1,3.7634]
[1724156001289,0.752513,2657.7,2657.1,3.7634]
[1724156001490,3.76266,2657.7,2657.1,3.7634]
[1724156001690,7.52544,2657.7,2657.1,3.7634]
[1724156001926,3.76266,2657.7,2657.1,3.7634]
[1724156002108,3.76266,2657.7,2657.1,7.52682]
[1724156002312,3.76266,2657.7,2657.1,3.7634]
[1724156002537,7.52541,2657.7,2657.1,3.7634]
[1724156002741,3.76284,2657.6,2657.1,3.7634]
[1724156003926,3.76284,2657.6,2657.0,3.76362]
[1724156005148,7.52572,2657.6,2657.0,3.76362]
[1724156005385,0.39354954,2658.1,2657.7,3.76261]
[1724156005679,1.96076489,2658.9,2658.2,3.76191]
[1724156005680,3.76132,2658.7,2658.2,3.76191]
[1724156006076,3.76132,2658.7,2658.1,3.76199]
[1724156006077,6.25644,2658.9,2658.1,3.76199]
[1724156006384,6.25643,2658.9,2658.3,3.76171]
[1724156006542,0.66499091,2658.8,2658.3,3.76171]
[1724156007547,4.42609091,2658.8,2658.3,3.76171]
[1724156008375,3.76124,2658.7,2658.1,3.76198]
[1724156009141,4.42608091,2658.8,2658.1,3.76198]
[1724156009343,4.42608091,2658.8,2658.3,3.76177]
[1724156009596,2.4954,2658.9,2658.3,3.76177]
[1724156010245,3.7611,2658.8,2658.2,3.76194]
[1724156011185,2.4954,2658.9,2658.3,7.52346]
[1724156011361,6.25643,2658.9,2658.3,3.76168]
[1724156013763,4.15437907,2659.0,2658.4,2.3921]
[1724156013990,4.15437907,2659.0,2658.4,6.769058]
[1724156014297,3.76095,2658.9,2658.4,3.007478]
[1724156014599,3.76095,2658.9,2658.4,0.615378]
[1724156015095,3.76109,2658.8,2658.1,6.19376]
[1724156015399,3.76109,2658.8,2658.2,3.76194]
[1724156015563,3.76109,2658.8,2658.1,6.19376]
[1724156015766,2.2834,2659.0,2657.9,3.0]
[1724156015961,3.76155,2658.5,2658.0,3.7622]
[1724156016162,3.7618,2658.3,2657.8,13.4483]
[1724156016361,3.76155,2658.5,2657.8,13.44822]
[1724156016588,7.52318,2658.5,2657.9,3.76236]
[1724156016790,3.76155,2658.5,2657.8,13.44822]
[1724156016989,3.76155,2658.5,2657.8,14.793042]
[1724156017203,3.76166,2658.4,2657.8,18.555482]
[1724156017397,3.76166,2658.4,2657.9,3.76236]
[1724156017702,3.76124,2658.7,2658.1,3.762]
[1724156017878,3.76124,2658.7,2658.1,3.76199]
[1724156018066,3.76124,2658.7,2658.2,3.76193]
[1724156018316,3.76119,2658.8,2658.2,3.76193]
[1724156018492,3.76116,2658.8,2658.3,3.76176]
[1724156018697,6.04425,2659.0,2658.3,3.76171]
[1724156018853,6.04425,2659.0,2658.4,3.76163]
[1724156019200,3.76085,2659.0,2658.4,3.76163]
[1724156019584,7.52173,2659.0,2658.4,3.76163]
[1724156019769,3.76085,2659.0,2658.4,3.76163]
[1724156020105,3.76062,2659.2,2658.7,3.76122]
[1724156020402,3.76018,2659.5,2658.9,3.76088]
[1724156020697,3.7606,2659.2,2658.5,2.4696]
[1724156020899,3.7606,2659.2,2658.6,3.76136]
[1724156021052,3.7606,2659.2,2658.5,9.23103]
[1724156021053,3.7606,2659.2,2658.5,2.4696]
[1724156021391,3.7606,2659.2,2658.5,3.01656]
[1724156021897,3.7606,2659.2,2658.6,3.76129]
[1724156022052,3.76039,2659.3,2658.7,3.76116]
[1724156022248,0.55,2659.2,2658.7,3.76116]
[1724156023352,4.31055,2659.2,2658.6,3.76129]
[1724156023553,4.31055,2659.2,2658.6,3.76128]
[1724156023779,4.31055,2659.2,2658.6,7.52257]
[1724156023949,4.31055,2659.2,2658.6,3.76128]
[1724156024152,3.76088,2659.0,2658.4,3.76164]
[1724156024578,3.7607,2659.1,2658.2,18.53783]
[1724156024755,4.31062,2659.2,2658.4,3.76165]
[1724156024756,3.76082,2659.0,2658.4,3.76165]
[1724156025774,3.76082,2659.0,2658.5,3.76149]
[1724156025981,7.52173,2659.0,2658.3,3.76171]
[1724156026183,3.76131,2658.7,2658.1,3.76205]
[1724156026497,7.52268,2658.7,2658.0,7.52425]
[1724156026697,2.3979,2659.0,2658.0,7.52425]
[1724156026698,3.76158,2658.5,2658.0,1.8514872]
[1724156027059,3.76158,2658.5,2657.9,6.09808]
[1724156027262,3.76158,2658.5,2657.9,9.86038]
[1724156027477,3.76158,2658.5,2657.9,6.09808]
[1724156027677,2.4811,2658.5,2657.9,3.76228]
[1724156028390,3.76167,2658.4,2657.8,3.76247]
[1724156028604,3.76167,2658.4,2657.8,4.735788]
[1724156028908,3.76167,2658.4,2657.9,3.76235]
[1724156030494,2.4811,2658.5,2657.9,3.76235]
[1724156031216,6.24268,2658.5,2657.9,3.76235]
[1724156031370,3.76166,2658.4,2657.7,3.76257]
[1724156031571,3.7618,2658.3,2657.7,3.76252]
[1724156031771,3.7618,2658.3,2657.8,3.76249]
[1724156032313,3.76194,2658.2,2657.7,0.919462]
[1724156032610,3.76194,2658.2,2657.6,3.76265]
[1724156032969,1.96469165,2658.7,2657.9,3.7623]
[1724156033172,4.72570979,2658.6,2658.1,3.76207]
[1724156033498,3.76128,2658.7,2658.1,3.76207]
[1724156033672,3.76096,2658.9,2658.3,3.76172]
[1724156033966,0.61499303,2659.0,2658.5,3.76143]
[1724156034169,0.61499303,2659.0,2658.5,7.52285]
[1724156034170,0.41418949,2658.9,2658.5,7.52285]
[1724156034385,0.61499303,2659.0,2658.5,3.76142]
[1724156034587,0.41417109,2658.9,2658.5,3.76142]
[1724156034781,0.61499303,2659.0,2658.5,3.76142]
[1724156034984,0.41416959,2658.9,2658.3,3.7617]
[1724156035214,0.61499303,2659.0,2658.3,3.7617]
[1724156035379,0.41418008,2658.9,2658.5,3.7615]
[1724156035580,0.61499303,2659.0,2658.5,3.7615]
[1724156035803,0.4141793,2658.9,2658.5,3.7615]
[1724156035982,0.61499303,2659.0,2658.5,3.7615]
[1724156036173,0.41417126,2658.9,2658.5,3.7615]
[1724156036369,0.61499303,2659.0,2658.4,3.76165]
[1724156036615,0.41418327,2658.9,2658.4,3.76165]
[1724156036771,0.61499303,2659.0,2658.4,3.76165]
[1724156036969,3.76069,2659.1,2658.4,4.741725]
[1724156038220,3.76069,2659.1,2658.6,3.76136]
[1724156038917,3.76048,2659.3,2658.7,3.7611]
[1724156039317,3.76048,2659.3,2658.8,3.76109]
[1724156039799,6.22715,2659.4,2658.8,3.76109]
[1724156041004,0.41412319,2659.3,2658.8,4.761484]
[1724156041225,6.22715,2659.4,2658.8,4.761484]
[1724156041444,9.98751,2659.4,2658.8,4.761484]
[1724156041594,6.22715,2659.4,2658.8,4.761484]
[1724156042113,6.22715,2659.4,2658.8,4.761414]
[1724156042289,7.58706,2659.6,2658.9,0.7243014]
[1724156042290,6.19598,2659.5,2658.9,0.7243014]
[1724156042495,4.17442832,2659.4,2658.8,4.761384]
[1724156042719,3.76032,2659.4,2658.8,4.761384]
[1724156043349,3.76032,2659.4,2658.8,8.522404]
[1724156043707,3.76032,2659.4,2658.8,4.761384]
[1724156044104,3.75992,2659.7,2658.8,4.761384]
[1724156044335,3.76011,2659.5,2658.9,3.76081]
[1724156044830,3.76004,2659.6,2659.0,3.76078]
[1724156045030,0.4140893,2659.5,2658.9,3.76081]
[1724156045230,3.76011,2659.5,2658.9,3.76081]
[1724156045392,3.76011,2659.5,2658.9,7.52169]
[1724156045587,3.76011,2659.5,2658.9,4.8611784]
[1724156045796,3.76011,2659.5,2658.9,8.6220584]
[1724156046039,3.76011,2659.5,2658.9,4.8611784]
[1724156046197,7.51985,2659.7,2659.1,3.76065]
[1724156046397,0.41408197,2659.6,2659.1,3.76065]
[1724156046712,7.51985,2659.7,2659.1,3.76065]
[1724156046893,3.76018,2659.5,2659.1,2.4285]
[1724156047698,3.76018,2659.5,2658.9,4.8612484]
[1724156048198,0.41410175,2659.4,2658.9,4.8612484]
[1724156048512,3.76018,2659.5,2658.9,4.8612484]
[1724156049109,3.75999,2659.6,2659.1,2.4108]
[1724156049311,3.75983,2659.7,2659.2,0.617152]
[1724156049536,0.41406295,2659.6,2659.2,4.377672]
[1724156049727,3.75983,2659.7,2659.2,4.377672]
[1724156049928,3.75983,2659.7,2659.2,0.617152]
[1724156049929,0.41405762,2659.6,2659.2,0.617152]
[1724156050114,3.75996,2659.6,2659.2,0.617152]
[1724156051229,0.41406682,2659.5,2659.1,2.4108]
[1724156051433,3.75996,2659.6,2659.1,2.4108]
[1724156051626,3.76025,2659.4,2658.8,7.242764]
[1724156051942,4.17453343,2659.3,2658.8,3.481794]
[1724156052153,3.7604,2659.3,2658.8,3.481794]
[1724156052916,0.41411354,2659.2,2658.8,3.481794]
[1724156053156,3.7604,2659.3,2658.8,3.481794]
[1724156053367,4.17465365,2659.2,2658.8,3.481794]
[1724156053656,4.17465365,2659.2,2658.8,2.4814]
[1724156053657,3.76054,2659.2,2658.8,2.4814]
[1724156053860,3.76069,2659.1,2658.6,11.07128]
[1724156054064,3.76085,2659.0,2658.5,2.4987]
[1724156054264,3.76102,2658.9,2658.5,2.4987]
[1724156054447,3.76082,2659.0,2658.5,2.4987]
[1724156054648,0.41416746,2658.9,2658.5,2.4987]
[1724156054849,0.41416746,2658.9,2658.1,19.75]
[1724156054850,3.76132,2658.7,2658.1,6.17927]
[1724156055051,0.41418272,2658.6,2658.2,1.348927]
[1724156055362,4.35833043,2659.0,2658.2,5.110787]
[1724156055363,3.76116,2658.8,2658.2,5.110787]
[1724156055548,0.41419304,2658.7,2658.2,5.110787]
[1724156055911,3.76116,2658.8,2658.2,5.110787]
[1724156056037,0.41418931,2658.7,2658.3,1.1290057]
[1724156056370,3.76096,2658.9,2658.3,4.8907857]
[1724156056538,0.41418459,2658.8,2658.3,4.8907857]
[1724156056722,0.41418779,2658.7,2658.3,4.8907857]
[1724156056921,3.7611,2658.8,2658.3,4.8907857]
[1724156057174,0.41418979,2658.7,2658.3,4.8907857]
[1724156057337,3.7611,2658.8,2658.3,4.8907857]
[1724156057538,0.41418832,2658.7,2658.3,4.8907857]
[1724156057770,3.7611,2658.8,2658.3,4.8907857]
[1724156057974,0.41418833,2658.7,2658.4,4.38555127]
[1724156058261,3.7609,2659.0,2658.4,7.52316]
[1724156058467,0.4141773,2658.9,2658.4,3.76158]
[1724156058777,0.4141773,2658.8,2658.5,3.76151]
[1724156058943,3.7609,2659.0,2658.5,3.76151]
[1724156059142,0.41416443,2658.9,2658.5,3.76151]
[1724156059347,0.41416443,2658.8,2658.4,3.76164]
[1724156059549,3.7609,2659.0,2658.4,4.76178127]
[1724156059868,0.41417018,2658.9,2658.4,4.76173127]
[1724156060059,0.41417018,2658.8,2658.4,4.76173127]
[1724156060257,3.7609,2659.0,2658.4,4.76172127]
[1724156060458,0.41416764,2658.9,2658.4,4.76172127]
[1724156060659,0.41416764,2658.8,2658.4,4.76172127]
[1724156061060,0.41416764,2658.8,2658.4,4.76171127]
[1724156061263,3.76083,2659.0,2658.5,0.47617113]
[1724156061484,0.41416532,2658.9,2658.5,0.47617113]
[1724156061648,0.41416532,2658.8,2658.5,0.47617113]
[1724156061983,3.76073,2659.1,2658.5,4.23756113]
[1724156062185,0.41416929,2659.0,2658.5,6.54106113]
[1724156062381,0.41416929,2658.9,2658.5,6.54106113]
[1724156062551,0.41416929,2658.8,2658.5,6.54106113]
[1724156062759,3.76073,2659.1,2658.5,6.54106113]
[1724156063069,0.41416535,2659.0,2658.5,6.54106113]
[1724156063265,0.41416535,2658.9,2658.5,6.54106113]
[1724156063519,0.41416535,2658.8,2658.5,6.54106113]
[1724156063720,5.72646043,2659.1,2658.5,6.54106113]
[1724156063927,0.41416306,2659.0,2658.5,6.54106113]
[1724156064434,5.72646043,2659.1,2658.5,6.54106113]
[1724156064435,0.41416876,2658.9,2658.5,6.54106113]
[1724156064741,5.72646043,2659.1,2658.5,6.54106113]
[1724156064925,0.41416879,2659.0,2658.5,6.54106113]
[1724156065127,0.41416879,2658.9,2658.5,6.54106113]
[1724156065309,0.41416879,2658.8,2658.5,6.54106113]
[1724156065637,3.76073,2659.1,2658.5,6.54106113]
[1724156065840,0.41416453,2659.0,2658.6,4.79157211]
[1724156066136,0.41416453,2658.9,2658.6,3.76131]
[1724156066342,5.72983537,2659.2,2658.6,3.76131]
[1724156066642,0.41414787,2659.1,2658.6,3.76131]
[1724156066849,0.41414787,2659.0,2658.5,6.54106113]
[1724156067001,0.41414787,2659.0,2658.5,10.30251113]
[1724156067202,0.41414787,2659.0,2658.6,3.76135]
[1724156068304,3.76068,2659.1,2658.6,3.76135]
[1724156068505,0.41415804,2659.0,2658.6,4.79159111]
[1724156068749,0.41415804,2658.9,2658.6,1.03024111]
[1724156068909,0.4141591,2658.8,2658.5,6.54117113]
[1724156069253,3.76096,2658.9,2658.5,0.47617113]
[1724156069421,0.4141772,2658.8,2658.4,3.76165]
[1724156069761,0.41419102,2658.7,2658.4,3.76165]
[1724156069905,3.76096,2658.9,2658.4,3.76165]
[1724156070105,0.41418635,2658.8,2658.4,3.76165]
[1724156070417,0.41418635,2658.7,2658.4,4.8969637]
[1724156070749,3.76096,2658.9,2658.4,4.8969637]
[1724156070902,0.41416834,2658.8,2658.4,4.8969637]
[1724156071152,3.76096,2658.9,2658.4,4.8969637]
[1724156071391,0.41416719,2658.8,2658.4,8.6585537]
[1724156071593,3.76082,2659.0,2658.5,0.86585537]
[1724156071800,0.41416267,2658.9,2658.5,0.86585537]
[1724156072092,0.41416267,2658.8,2658.2,3.829627]
[1724156072255,3.76082,2659.0,2658.4,3.76157]
[1724156072452,0.41416222,2658.9,2658.4,3.76157]
[1724156072774,0.41416222,2658.8,2658.6,3.76131]
[1724156072977,3.7606,2659.2,2658.6,3.76129]
[1724156073193,0.41414153,2659.1,2658.6,3.76129]
[1724156073530,0.41414153,2659.0,2658.4,1.1353037]
[1724156073677,1.96951976,2659.7,2659.2,3.76045]
[1724156073860,0.41406588,2659.6,2659.3,6.02843]
[1724156074062,3.75967,2659.9,2659.3,6.02843]
[1724156074063,5.72914976,2659.9,2659.3,6.02843]
[1724156074362,0.98695377,2659.8,2659.3,6.02843]
[1724156074594,0.41403879,2659.7,2659.3,6.02843]
[1724156074902,0.41403879,2659.6,2659.3,6.02843]
[1724156075059,0.57291498,2659.8,2659.3,6.02843]
[1724156075397,0.41403803,2659.7,2659.4,3.76024]
[1724156075606,1.96951976,2660.1,2659.6,3.75995]
[1724156075759,0.41401018,2660.0,2659.6,3.75995]
[1724156075956,0.41401018,2659.9,2659.7,6.22894]
[1724156076163,1.96951976,2660.3,2659.7,6.22894]
[1724156076164,1.96951976,2660.3,2659.8,3.75959]
[1724156076472,0.41397898,2660.2,2659.7,6.22894]
[1724156076670,0.41397898,2660.1,2659.7,3.75969]
[1724156076873,0.41397898,2660.0,2659.8,3.75966]
[1724156077082,0.375905,2660.2,2659.9,3.75946]
[1724156077304,0.4139605,2660.1,2659.9,3.75946]
[1724156077607,3.75883,2660.4,2659.7,3.75968]
[1724156077755,1.36266565,2660.3,2659.7,3.75968]
[1724156077961,0.41395767,2660.2,2659.7,3.75968]
[1724156078455,0.94870798,2660.3,2659.8,3.75956]
[1724156078658,0.41395835,2660.2,2659.8,3.75956]
[1724156078859,0.41395835,2660.2,2659.6,2.4692]
[1724156078860,0.41395835,2660.1,2659.6,2.4692]
[1724156079100,4.59069618,2660.0,2659.6,2.4692]
[1724156079274,0.41395835,2659.9,2659.4,3.76018]
[1724156079602,4.17352835,2659.9,2659.3,6.0366]
[1724156079770,4.17367835,2659.8,2659.3,2.2763]
[1724156079971,1.20735284,2659.7,2659.2,3.76052]
[1724156080207,4.55316484,2659.7,2659.1,6.03697]
[1724156081006,4.55316484,2659.7,2659.1,2.2763]
[1724156081207,3.76012,2659.5,2658.9,11.07087]
[1724156081361,7.5198,2659.7,2659.0,3.76077]
[1724156081566,0.41405685,2659.6,2659.0,3.76072]
[1724156081776,0.75198,2659.6,2659.0,3.76072]
[1724156081973,0.41406926,2659.5,2659.0,3.76072]
[1724156082294,4.51196,2659.6,2659.0,3.76072]
[1724156082535,1.24124205,2659.5,2659.0,3.76072]
[1724156082843,4.58731,2659.5,2659.0,3.76072]
[1724156083813,8.41663743,2660.0,2658.9,3.76085]
[1724156084051,3.76009,2659.6,2658.9,3.76085]
[1724156084337,1.9675796,2659.8,2658.8,6.01237]
[1724156084338,0.41407122,2659.5,2659.0,3.76077]
[1724156084537,3.75977,2659.8,2659.2,3.76052]
[1724156084723,0.9867869,2659.7,2659.2,3.76052]
[1724156084901,0.41405194,2659.6,2659.2,7.52096]
[1724156085096,0.57273496,2659.7,2659.1,3.76063]
[1724156085301,0.41405399,2659.6,2659.1,3.76063]
[1724156085515,4.33262496,2659.7,2659.1,3.76063]
[1724156085717,1.22329462,2659.6,2659.0,7.52147]
[1724156086040,0.41405874,2659.5,2659.0,3.76073]
[1724156086342,4.5692095,2659.6,2659.0,3.76073]
[1724156086638,0.41406681,2659.5,2659.0,3.76073]
[1724156086839,4.5692095,2659.6,2659.0,3.76073]
[1724156087142,0.92826485,2659.5,2659.0,3.76073]
[1724156087340,0.51419445,2659.5,2659.0,3.76073]
[1724156089042,0.51419445,2659.5,2659.0,7.52147]
[1724156089546,3.75997,2659.6,2659.1,3.76065]
[1724156089899,0.57273496,2659.7,2659.1,3.76065]
[1724156090124,0.41405355,2659.6,2659.1,3.76065]
[1724156090319,0.57273496,2659.7,2659.1,3.76065]
[1724156090519,0.41405842,2659.6,2659.1,3.76065]
[1724156090743,4.33256496,2659.7,2659.1,3.76065]
[1724156090948,1.22329111,2659.6,2659.1,3.76065]
[1724156091146,0.8092315,2659.6,2659.1,3.76065]
[1724156094258,0.8092315,2659.6,2659.2,3.76041]
[1724156094615,7.51951,2659.8,2659.2,3.76041]
[1724156094963,0.41405711,2659.7,2659.2,3.76041]
[1724156095153,0.41405711,2659.6,2659.2,3.76041]
[1724156095331,3.75996,2659.6,2659.0,7.52137]
[1724156095540,0.41406313,2659.5,2659.0,7.52137]
[1724156095755,3.75996,2659.6,2659.0,7.52137]
[1724156096068,3.75996,2659.6,2659.0,3.76067]
[1724156096069,3.7601,2659.5,2659.0,3.76067]
[1724156097578,4.511941,2659.6,2659.0,3.76067]
[1724156097769,0.41406288,2659.5,2659.1,3.76066]
[1724156098072,3.75997,2659.6,2659.1,3.76066]
[1724156098271,0.36406517,2659.5,2659.1,3.76066]
[1724156098566,3.75997,2659.6,2659.0,3.7608]
[1724156098567,7.52002,2659.6,2659.0,3.7608]
[1724156098771,7.52002,2659.6,2659.0,3.76072]
[1724156098954,7.52002,2659.6,2658.8,6.01243]
[1724156099122,7.52002,2659.6,2658.9,3.76086]
[1724156099123,3.76018,2659.5,2658.9,3.76086]
[1724156099554,3.76034,2659.4,2658.8,9.77342]
[1724156099751,3.76034,2659.4,2658.8,6.01239]
[1724156099968,3.76034,2659.4,2658.9,3.76094]
[1724156100331,4.745415,2659.5,2658.9,3.76094]
[1724156101625,3.76039,2659.3,2658.8,6.01239]
[1724156101820,3.76039,2659.3,2658.7,7.31]
[1724156102079,3.76074,2659.1,2658.7,7.31]
[1724156102380,3.76064,2659.2,2658.6,3.76135]
[1724156102583,4.24508865,2659.2,2658.6,3.76135]
[1724156103168,4.24504865,2659.2,2658.6,3.76131]
[1724156103375,3.76067,2659.1,2658.6,3.76131]
[1724156103692,10.32436865,2659.2,2658.6,3.76131]
[1724156103827,1.22915388,2659.1,2658.6,3.76131]
[1724156104243,4.98988388,2659.1,2658.5,6.02501]
[1724156104460,3.76081,2659.0,2658.5,3.76151]
[1724156104990,3.76081,2659.0,2658.4,3.76155]
[1724156105127,5.11289827,2659.0,2658.4,3.76155]
[1724156105753,3.76097,2658.9,2658.4,3.76155]
[1724156106034,3.76097,2658.9,2658.2,3.829527]
[1724156106035,3.76123,2658.7,2658.2,3.76186]
[1724156106354,3.76123,2658.7,2658.1,3.76201]
[1724156106758,3.76144,2658.6,2658.0,6.01459]
[1724156106940,7.52344,2658.4,2657.8,3.76247]
[1724156107141,7.52344,2658.4,2657.7,2.2525]
[1724156107142,6.02536,2658.4,2657.7,2.2525]
[1724156107342,6.02536,2658.4,2657.6,3.76269]
[1724156107343,3.76198,2658.2,2657.6,3.76269]
[1724156107655,0.376198,2658.1,2657.6,3.76269]
[1724156107969,4.138288,2658.1,2657.4,6.01544]
[1724156108164,4.138288,2658.1,2657.5,3.76291]
[1724156108468,4.138288,2658.1,2657.4,2.2525]
[1724156108469,3.76233,2658.0,2657.4,2.2525]
[1724156108652,4.1761588,2658.0,2657.4,2.2525]
[1724156108890,4.1761588,2658.0,2657.4,6.01556]
[1724156110175,4.1761588,2658.0,2657.4,9.77862]
[1724156110376,4.1761588,2658.0,2657.4,6.01556]
[1724156110670,3.76199,2658.2,2657.4,6.01549]
[1724156111008,6.02538,2658.4,2657.8,3.76247]
[1724156111212,3.76181,2658.3,2657.6,3.76269]
[1724156111370,4.364348,2658.3,2657.6,7.5254]
[1724156111736,4.364348,2658.3,2657.6,7.52541]
[1724156112381,3.76195,2658.2,2657.6,3.76269]
[1724156112577,3.76216,2658.1,2657.4,6.01549]
[1724156112780,6.449156,2658.0,2657.3,3.76311]
[1724156113179,3.76252,2657.8,2657.2,6.18318]
[1724156113379,6.449156,2658.0,2657.2,6.18318]
[1724156113578,3.7624,2657.9,2657.3,3.76321]
[1724156113816,6.449156,2658.0,2657.0,14.07352]
[1724156113817,0.98040329,2657.8,2657.0,14.07352]
[1724156114025,3.76286,2657.6,2657.0,3.76352]
[1724156114202,3.76316,2657.4,2656.8,3.76383]
[1724156114606,3.76323,2657.3,2656.7,7.31]
[1724156114805,3.76323,2657.3,2656.7,11.07406]
[1724156114806,2.3679,2657.3,2656.7,11.07406]
[1724156115279,6.13112,2657.3,2656.7,11.07406]
[1724156116025,6.13112,2657.3,2656.8,7.52775]
[1724156116026,2.3679,2657.3,2656.8,7.52775]
[1724156116231,2.3679,2657.3,2656.8,7.52768]
[1724156116441,2.3679,2657.3,2656.9,3.76374]
[1724156116647,0.376316,2657.4,2656.9,3.76374]
[1724156117440,4.139406,2657.4,2656.8,4.24401998]
[1724156117740,4.139406,2657.4,2656.8,7.52767]
[1724156117924,4.139406,2657.4,2656.8,3.76383]
[1724156120908,0.376316,2657.4,2656.8,3.76383]
[1724156121114,6.15354,2657.5,2656.9,3.76366]
[1724156121331,2.3906,2657.5,2657.0,3.76355]
[1724156121501,6.15356,2657.5,2657.0,3.76355]
[1724156123298,9.92297,2657.7,2657.1,3.76342]
[1724156123497,1.14533733,2657.6,2657.1,3.76342]
[1724156123840,1.14533733,2657.6,2656.8,3.7639]
[1724156124157,3.76316,2657.4,2656.8,3.76378]
[1724156124351,3.20302,2657.3,2656.8,3.76378]
[1724156125188,3.20302,2657.3,2656.8,7.5276]
[1724156126042,3.20302,2657.3,2656.9,3.76377]
[1724156126358,0.75262,2657.3,2657.0,7.52712]
[1724156126540,2.29,2658.1,2657.5,3.76285]
[1724156126743,2.29,2658.1,2657.7,3.76261]
[1724156128091,2.443,2658.4,2657.9,3.76234]
[1724156129178,6.20469,2658.4,2657.7,3.76254]
[1724156129374,3.76196,2658.2,2657.5,7.52568]
[1724156129777,3.76196,2658.2,2657.5,3.76279]
[1724156129982,3.76209,2658.1,2657.5,3.76279]
[1724156130573,3.76209,2658.1,2657.3,3.76312]
[1724156130770,3.76238,2657.9,2657.3,3.76312]
[1724156130977,2.4392,2658.0,2657.4,3.76297]
[1724156131271,3.76224,2658.0,2657.4,3.76297]
[1724156131697,3.76209,2658.1,2657.4,7.52595]
[1724156131867,3.76209,2658.1,2657.5,3.76291]
[1724156132303,2.4392,2658.2,2657.5,4.515498]
[1724156132618,3.76188,2658.3,2657.7,3.76262]
[1724156132765,3.76188,2658.3,2657.7,3.76257]
[1724156133274,6.07036,2658.4,2657.8,3.76242]
[1724156133510,0.55,2658.3,2657.8,3.76242]
[1724156134109,4.31182,2658.3,2657.7,3.76255]
[1724156135218,2.3087,2658.4,2657.9,3.76234]
[1724156135680,6.07038,2658.4,2657.9,3.76234]
[1724156136026,6.07038,2658.4,2657.7,4.378595]
[1724156136027,3.7618,2658.3,2657.7,4.378595]
[1724156136177,3.7618,2658.3,2657.7,3.76254]
[1724156136519,3.7618,2658.3,2657.7,7.5251]
[1724156136894,3.7618,2658.3,2657.7,3.76254]
[1724156137299,3.7618,2658.3,2657.7,7.52511]
[1724156137512,3.7618,2658.3,2657.7,3.76254]
[1724156137907,3.7618,2658.3,2657.7,7.52512]
[1724156138290,3.7618,2658.3,2657.7,7.52509]
[1724156138493,3.7618,2658.3,2657.7,3.76254]
[1724156138826,4.783278,2658.3,2657.7,3.76254]
[1724156139086,4.14428,2658.5,2657.8,6.13528]
[1724156139285,3.76158,2658.5,2658.0,3.76214]
[1724156139585,3.76158,2658.5,2657.8,3.76237]
[1724156139879,3.7618,2658.3,2657.8,3.76237]
[1724156140074,3.76209,2658.1,2657.5,6.05611]
[1724156140250,0.55,2658.0,2657.5,6.05611]
[1724156140575,0.55,2658.0,2657.5,3.76281]
[1724156140944,4.31223,2658.0,2657.5,3.76281]
[1724156141680,3.76243,2657.9,2657.3,6.05649]
[1724156141983,4.6075169,2657.9,2657.3,6.05649]
[1724156142164,4.6075169,2657.9,2657.1,3.0]
[1724156142165,6.24335,2657.7,2657.1,3.7635]
[1724156142366,6.24335,2657.7,2657.2,3.76335]
[1724156142367,0.55,2657.6,2657.2,3.76335]
[1724156142682,0.55,2657.6,2657.3,3.76321]
[1724156142890,6.07992,2658.0,2657.0,6.05691]
[1724156143043,0.55,2657.9,2657.4,3.76299]
[1724156143468,4.31246,2657.9,2657.3,3.76321]
[1724156144254,3.7626,2657.8,2657.2,3.76327]
[1724156144584,0.55,2657.7,2657.3,7.52634]
[1724156144748,0.55,2657.7,2657.3,3.76315]
[1724156144949,2.3176,2658.0,2657.5,3.76284]
[1724156145140,6.07995,2658.0,2657.4,3.76301]
[1724156145345,1.5718269,2657.9,2657.4,3.76301]
[1724156145584,2.3176,2658.0,2657.5,3.76291]
[1724156145888,0.55,2657.9,2657.4,7.526]
[1724156146253,0.55,2657.9,2657.4,3.76299]
[1724156146952,0.55,2657.9,2657.4,7.52599]
[1724156147154,0.55,2657.9,2657.4,3.76299]
[1724156148459,4.3124,2657.9,2657.4,3.76299]
[1724156148742,0.55,2657.9,2657.4,3.76299]
[1724156148980,0.55,2657.9,2657.2,3.76326]
[1724156149186,0.55,2657.9,2657.2,4.745278]
[1724156149344,4.31237,2657.9,2657.4,3.76301]
[1724156149979,0.55,2657.9,2657.4,7.52602]
[1724156150396,0.41433048,2657.8,2657.5,3.76291]
[1724156150602,0.55,2657.9,2657.5,3.76291]
[1724156150798,0.41432357,2657.8,2657.4,3.76301]
[1724156150975,0.55,2657.9,2657.4,3.76301]
[1724156151303,0.41432834,2657.8,2657.4,3.763]
[1724156151492,0.41432834,2657.7,2657.4,3.763]
[1724156151668,0.55,2657.9,2657.4,3.76298]
[1724156151870,0.4143322,2657.8,2657.4,3.76298]
[1724156152194,0.4143322,2657.7,2657.3,3.76321]
[1724156152382,5.0130209,2657.9,2657.3,3.76321]
[1724156152576,0.41433905,2657.8,2657.3,3.76321]
[1724156152776,0.41433905,2657.8,2657.2,3.76325]
[1724156152777,0.41433905,2657.7,2657.2,3.76325]
[1724156152966,0.96433905,2657.7,2657.2,7.52652]
[1724156153306,0.41434046,2657.6,2657.2,7.52652]
[1724156153514,0.55,2657.7,2657.2,7.52652]
[1724156153820,0.41434051,2657.6,2657.2,7.52652]
[1724156154106,0.55,2657.7,2657.2,7.52653]
[1724156154305,0.41433936,2657.6,2657.2,3.76325]
[1724156154460,1.42756109,2657.7,2657.2,3.76325]
[1724156154663,0.41434161,2657.6,2657.2,3.76325]
[1724156154864,1.42756109,2657.7,2657.2,3.76325]
[1724156155065,1.42756109,2657.7,2657.1,3.7635]
[1724156155066,2.88961511,2657.6,2657.1,3.7635]
[1724156155381,0.96437368,2657.5,2657.0,3.76355]